bitfinex/quotes_ETHUSD_20250628
["timestamp","ask_amount","ask_price","bid_price","bid_amount"]
[1751077806866,4.94580378,2422.2,2422.0,6.658]
[1751077807766,0.8173,2422.2,2422.0,6.658]
[1751077809666,4.94586018,2422.2,2422.0,6.658]
[1751077809891,0.8173,2422.2,2422.0,6.658]
[1751077810170,4.94586442,2422.2,2422.0,6.658]
[1751077811070,5.87588966,2422.2,2422.0,6.658]
[1751077811244,1.74732524,2422.2,2422.0,6.658]
[1751077814449,1.74732524,2422.2,2421.9,6.657]
[1751077814653,0.2064,2422.0,2421.9,6.657]
[1751077814844,0.2064,2422.0,2421.9,10.78598963]
[1751077815268,0.2251895,2422.3,2421.9,11.58308963]
[1751077815474,0.4315895,2422.3,2421.9,7.4541]
[1751077815675,0.4315895,2422.3,2421.9,11.58307421]
[1751077816178,0.4315895,2422.3,2422.0,4.12880123]
[1751077816377,0.4315895,2422.3,2421.9,11.58300267]
[1751077817165,0.4315895,2422.3,2422.0,4.12881746]
[1751077817388,0.4315895,2422.3,2421.9,11.58300526]
[1751077817566,0.4315895,2422.3,2421.9,7.4541]
[1751077817746,0.4315895,2422.3,2422.0,4.12870232]
[1751077820079,0.4315895,2422.3,2421.9,11.58300642]
[1751077820458,0.4315895,2422.3,2422.0,4.12879221]
[1751077821190,0.4315895,2422.3,2422.1,4.1286461]
[1751077821490,0.4315895,2422.3,2422.2,6.657]
[1751077830830,0.4315895,2422.3,2422.2,10.78547824]
[1751077830831,0.2251895,2422.3,2422.2,10.78547824]
[1751077831101,0.2251895,2422.3,2422.2,11.56377824]
[1751077831602,0.2251895,2422.3,2422.2,7.4353]
[1751077832708,0.2251895,2422.3,2422.2,11.56377824]
[1751077834676,0.2251895,2422.3,2422.2,11.77017824]
[1751077836808,0.2251895,2422.3,2422.2,10.99187824]
[1751077836977,0.2251895,2422.3,2422.2,6.657]
[1751077837178,0.2251895,2422.3,2422.2,6.656]
[1751077838925,1.0549895,2422.3,2422.2,6.656]
[1751077839719,1.0549895,2422.3,2421.9,14.12897227]
[1751077840013,1.0549895,2422.3,2422.0,6.655]
[1751077840212,1.0549895,2422.3,2422.0,10.78380425]
[1751077841907,0.2251895,2422.3,2422.2,4.12847824]
[1751077842110,0.2251895,2422.3,2422.2,10.78347824]
[1751077843580,0.2251895,2422.3,2422.2,6.655]
[1751077843982,0.2251895,2422.3,2422.2,10.78347824]
[1751077862638,0.2251895,2422.3,2422.2,6.655]
[1751077863709,0.2251895,2422.3,2422.1,4.12855157]
[1751077863907,0.4315895,2422.3,2422.2,6.654]
[1751077865040,0.4315895,2422.3,2422.2,10.78247824]
[1751077867235,0.2251895,2422.3,2422.2,10.78247824]
[1751077870856,0.2251895,2422.3,2422.0,0.2064]
[1751077871017,0.2251895,2422.3,2422.1,6.654]
[1751077871215,0.2251895,2422.3,2422.1,10.78261167]
[1751077872613,0.2251895,2422.3,2421.9,6.83222082]
[1751077872614,0.9989895,2422.3,2421.9,0.2064]
[1751077872837,0.7738,2421.9,2421.6,4.33574426]
[1751077873050,0.7738,2421.9,2421.7,6.654]
[1751077873856,0.7738,2421.9,2421.7,10.78330206]
[1751077874354,0.7738,2421.9,2421.6,0.2064]
[1751077874355,0.7738,2421.9,2421.6,4.33581966]
[1751077874654,0.7738,2421.9,2421.8,7.254]
[1751077883961,1.28469151,2421.9,2421.8,0.6]
[1751077884132,0.7738,2421.9,2421.8,7.254]
[1751077884843,4.90278963,2421.9,2421.8,0.6]
[1751077885167,11.44991346,2421.9,2421.8,0.6]
[1751077885541,5.14131906,2421.8,2421.4,6.654]
[1751077885760,4.93491906,2421.8,2421.4,6.654]
[1751077886267,6.49602231,2421.8,2421.4,6.654]
[1751077887161,0.2064,2421.4,2421.2,4.13209624]
[1751077887364,0.2064,2421.4,2421.3,6.654]
[1751077888666,0.2064,2421.4,2421.2,0.002]
[1751077888853,0.2064,2421.4,2421.3,6.655]
[1751077889361,0.2064,2421.4,2421.2,4.13216974]
[1751077889563,0.2064,2421.4,2421.3,6.655]
[1751077891168,0.2064,2421.4,2421.3,10.7850128]
[1751077893471,0.2064,2421.4,2421.3,6.655]
[1751077894448,0.2064,2421.4,2421.3,10.7850128]
[1751077897070,0.2064,2421.4,2421.3,6.655]
[1751077899674,0.2064,2421.4,2421.3,10.7850128]
[1751077901087,0.2064,2421.7,2421.5,4.12964912]
[1751077904480,0.2064,2421.7,2421.4,4.12975396]
[1751077905475,0.2064,2421.7,2421.3,6.8614]
[1751077905688,0.2064,2421.7,2421.3,10.9913632]
[1751077906095,0.8257,2421.6,2421.3,10.9913632]
[1751077906877,0.8257,2421.6,2421.3,10.7849632]
[1751077907082,1.0321,2421.6,2421.3,10.7849632]
[1751077909782,1.0321,2421.6,2421.2,4.13209469]
[1751077910083,1.0321,2421.6,2421.4,6.655]
[1751077910384,1.5482455,2421.6,2421.4,6.655]
[1751077911074,1.0321,2421.6,2421.4,6.655]
[1751077918288,1.0321,2421.6,2421.3,4.13001256]
[1751077918590,1.0321,2421.6,2421.4,6.655]
[1751077920996,5.16165263,2421.6,2421.4,6.655]
[1751077921496,4.12967169,2421.5,2421.4,6.655]
[1751077921694,5.16169176,2421.6,2421.4,6.655]
[1751077921895,6.09078337,2421.6,2421.4,6.655]
[1751077922295,1.96119161,2421.6,2421.4,6.655]
[1751077923181,1.96119161,2421.6,2421.2,0.002]
[1751077923375,1.96119161,2421.6,2421.3,6.654]
[1751077923376,4.12975915,2421.5,2421.3,6.654]
[1751077924080,5.88436492,2421.6,2421.3,6.654]
[1751077924281,1.65608834,2421.5,2421.3,6.654]
[1751077925471,4.95528034,2421.6,2421.3,6.654]
[1751077926771,0.2064,2421.3,2421.2,0.002]
[1751077926972,0.2064,2421.3,2421.2,6.656]
[1751077929206,3.24181418,2421.5,2421.2,6.656]
[1751077929380,0.2064,2421.3,2421.2,6.656]
[1751077930502,0.2064,2421.3,2421.2,0.002]
[1751077930695,0.2064,2421.3,2421.2,6.656]
[1751077931375,0.8257,2421.6,2421.2,10.78618338]
[1751077931576,0.2064,2421.4,2421.2,10.78618338]
[1751077935484,0.2064,2421.4,2421.2,4.13218338]
[1751077935682,0.2064,2421.4,2421.3,6.654]
[1751077937379,0.2064,2421.4,2421.3,11.6092128]
[1751077937581,0.2064,2421.7,2421.4,4.12968747]
[1751077941915,0.2064,2421.7,2421.5,4.12961966]
[1751077942113,0.2064,2421.7,2421.6,6.654]
[1751077960938,0.2064,2421.7,2421.6,10.78350115]
[1751077961120,0.2064,2422.0,2421.7,4.88292235]
[1751077963747,0.2064,2422.0,2421.7,0.7537]
[1751077963924,0.2064,2422.2,2421.8,4.12903072]
[1751077964126,0.2064,2422.2,2421.9,6.652]
[1751077965248,0.2064,2422.2,2422.0,4.12879512]
[1751077965421,0.2064,2422.2,2421.8,4.12916012]
[1751077965626,0.2064,2422.2,2421.9,10.78097886]
[1751077966234,0.2251895,2422.3,2422.1,4.12864869]
[1751077966417,0.2251895,2422.3,2422.2,10.78047824]
[1751077968313,0.2251895,2422.3,2422.2,11.60557824]
[1751077968514,0.2251895,2422.3,2422.2,21.81197824]
[1751077974535,0.2251895,2422.3,2422.2,27.11197824]
[1751077974931,0.2251895,2422.3,2422.2,57.65340374]
[1751077975129,0.2251895,2422.3,2422.2,56.61025074]
[1751077975340,0.2251895,2422.3,2422.2,56.06882524]
[1751077975850,0.2251895,2422.3,2422.2,27.11197824]
[1751077976069,0.2251895,2422.3,2422.2,57.11197824]
[1751077976768,0.2251895,2422.3,2422.2,54.08663124]
[1751077976963,0.2251895,2422.3,2422.2,27.11197824]
[1751077977147,0.2251895,2422.3,2422.2,53.48763124]
[1751077977345,0.2251895,2422.3,2422.2,53.16331424]
[1751077977969,0.2251895,2422.3,2422.2,27.11197824]
[1751077978263,0.2251895,2422.3,2422.2,53.17976024]
[1751077978970,0.2251895,2422.3,2422.2,52.01296724]
[1751077979342,0.2251895,2422.3,2422.2,49.73731224]
[1751077979545,0.2251895,2422.3,2422.2,37.01707424]
[1751077979955,0.2251895,2422.3,2422.2,51.14266624]
[1751077980246,0.2251895,2422.3,2422.2,45.47657724]
[1751077980870,0.2251895,2422.3,2422.2,21.05997824]
[1751077981042,0.2251895,2422.3,2422.2,50.73596724]
[1751077981369,0.2251895,2422.3,2422.2,42.94012124]
[1751077981867,0.2251895,2422.3,2422.2,35.56095324]
[1751077982036,0.2251895,2422.3,2422.2,36.19495324]
[1751077982831,0.2251895,2422.3,2422.2,27.85095324]
[1751077983066,0.2251895,2422.3,2422.2,37.20273224]
[1751077983547,0.2251895,2422.3,2422.2,22.75597824]
[1751077983742,0.2251895,2422.3,2422.2,29.40397824]
[1751077984074,0.2251895,2422.3,2422.2,20.50997824]
[1751077984274,0.2251895,2422.3,2422.2,28.85397824]
[1751077984579,0.2251895,2422.3,2422.2,20.50997824]
[1751077984793,0.2251895,2422.3,2422.2,28.85397824]
[1751077987858,0.2251895,2422.3,2422.2,24.10397824]
[1751077988262,0.2251895,2422.3,2422.2,15.75997824]
[1751077988450,0.2251895,2422.3,2422.2,24.10397824]
[1751077989572,0.2251895,2422.3,2422.2,23.27887824]
[1751077991991,0.2251895,2422.3,2422.2,23.27787824]
[1751077999512,0.2251895,2422.3,2422.2,14.93487824]
[1751077999714,0.2251895,2422.3,2422.2,23.27787824]
[1751078002117,0.2251895,2422.3,2422.2,14.93487824]
[1751078002327,0.2251895,2422.3,2422.2,23.27787824]
[1751078005242,0.2251895,2422.3,2422.2,14.93487824]
[1751078005448,0.2251895,2422.3,2422.2,23.27787824]
[1751078007441,0.2251895,2422.3,2422.2,14.93487824]
[1751078007616,0.2251895,2422.3,2422.2,23.27687824]
[1751078007816,0.2251895,2422.3,2422.2,14.93487824]
[1751078008050,0.2251895,2422.3,2422.2,23.27687824]
[1751078008247,0.2251895,2422.3,2422.2,14.93487824]
[1751078008419,0.2251895,2422.3,2422.2,23.27687824]
[1751078010445,0.2251895,2422.3,2422.2,14.93487824]
[1751078010629,0.2251895,2422.3,2422.2,23.27687824]
[1751078011822,0.2251895,2422.3,2422.2,16.62987824]
[1751078012022,0.2251895,2422.3,2422.2,23.27687824]
[1751078015056,0.2251895,2422.3,2422.2,14.93487824]
[1751078015274,1.0306895,2422.3,2422.2,0.8064]
[1751078015464,1.54677515,2422.3,2422.2,7.247]
[1751078015663,1.75317515,2422.3,2422.2,7.247]
[1751078017378,5.88148295,2422.3,2422.2,7.247]
[1751078017872,1.70637515,2422.3,2422.2,7.247]
[1751078019774,1.1902895,2422.3,2422.2,11.37547824]
[1751078020085,0.2251895,2422.3,2422.2,11.37547824]
[1751078020883,0.2251895,2422.3,2422.2,7.247]
[1751078022657,0.2251895,2422.3,2422.2,11.37547824]
[1751078024751,0.2251895,2422.3,2422.2,7.247]
[1751078025783,0.2251895,2422.3,2422.2,11.37547824]
[1751078026585,0.2251895,2422.3,2422.2,7.247]
[1751078029290,0.2251895,2422.3,2422.2,11.37547824]
[1751078030887,0.2251895,2422.3,2422.2,7.247]
[1751078032966,0.2251895,2422.3,2422.2,11.37547824]
[1751078033188,0.2251895,2422.3,2422.2,11.58187824]
[1751078052733,0.2251895,2422.3,2422.2,21.58187824]
[1751078055048,0.2251895,2422.3,2422.2,22.37857824]
[1751078061758,0.2251895,2422.3,2422.2,15.73157824]
[1751078061955,0.2251895,2422.3,2422.2,22.37757824]
[1751078063760,0.2251895,2422.3,2422.2,29.47369774]
[1751078063931,0.2251895,2422.3,2422.2,59.47369774]
[1751078065477,0.2251895,2422.3,2422.2,60.01512324]
[1751078065649,0.2251895,2422.3,2422.2,59.47369774]
[1751078066776,0.2251895,2422.3,2422.2,56.50441274]
[1751078066948,0.2251895,2422.3,2422.2,53.22073274]
[1751078067369,0.2251895,2422.3,2422.2,27.54867824]
[1751078067681,0.2251895,2422.3,2422.2,29.37157824]
[1751078069101,0.2251895,2422.3,2422.2,28.02487824]
[1751078069660,0.2251895,2422.3,2422.2,28.02387824]
[1751078071267,0.2251895,2422.3,2422.2,19.68487824]
[1751078071594,0.2251895,2422.3,2422.2,28.02387824]
[1751078072454,0.2251895,2422.3,2422.2,19.68487824]
[1751078072656,0.2251895,2422.3,2422.2,28.02387824]
[1751078073598,0.2251895,2422.3,2422.2,23.27387824]
[1751078074269,0.2251895,2422.3,2422.2,14.93487824]
[1751078074584,0.2251895,2422.3,2422.2,23.27387824]
[1751078075589,0.2251895,2422.3,2422.2,34.88752924]
[1751078075768,0.2251895,2422.3,2422.2,60.86809974]
[1751078076091,0.2251895,2422.3,2422.2,58.53393674]
[1751078076693,0.2251895,2422.3,2422.2,61.12759774]
[1751078077996,0.2251895,2422.3,2422.2,51.31338474]
[1751078078989,0.2251895,2422.3,2422.2,31.12759774]
[1751078079289,0.2251895,2422.3,2422.2,52.23205374]
[1751078079456,0.2251895,2422.3,2422.2,56.98205374]
[1751078079988,0.2251895,2422.3,2422.2,65.87759774]
[1751078083900,0.2251895,2422.3,2422.2,58.63971174]
[1751078084109,0.2251895,2422.3,2422.2,65.87759774]
[1751078084400,0.2251895,2422.3,2422.2,35.87759774]
[1751078084700,0.2251895,2422.3,2422.2,65.87759774]
[1751078089180,0.2251895,2422.3,2422.2,35.87759774]
[1751078089381,0.2251895,2422.3,2422.2,65.87759774]
[1751078094406,0.2251895,2422.3,2422.2,66.41902324]
[1751078094708,0.001,2422.4,2422.3,46.0225333]
[1751078094886,0.001,2422.4,2422.3,52.6665333]
[1751078095086,0.001,2422.4,2422.3,52.8729333]
[1751078095596,0.001,2422.4,2422.3,24.0385918]
[1751078095782,0.001,2422.4,2422.3,32.3765918]
[1751078095986,0.001,2422.4,2422.3,24.0385918]
[1751078096197,0.001,2422.4,2422.3,32.3765918]
[1751078096704,0.001,2422.4,2422.3,38.2551888]
[1751078096909,0.001,2422.4,2422.3,36.1483518]
[1751078097107,0.001,2422.4,2422.3,35.3162898]
[1751078097494,0.001,2422.4,2422.3,24.0255078]
[1751078097699,0.001,2422.4,2422.3,35.6261168]
[1751078097917,0.001,2422.4,2422.3,35.83079122]
[1751078098211,0.001,2422.4,2422.3,35.11816422]
[1751078098412,0.001,2422.4,2422.3,26.78016422]
[1751078098613,0.001,2422.4,2422.3,29.2402278]
[1751078098916,0.001,2422.4,2422.3,23.2227078]
[1751078099303,0.001,2422.4,2422.3,25.4266988]
[1751078101121,0.001,2422.4,2422.3,31.9728183]
[1751078101799,1.713495,2423.7,2423.0,4.12696928]
[1751078102116,0.2056,2423.4,2423.1,6.643]
[1751078102797,0.2056,2423.4,2423.1,10.76981947]
[1751078103817,0.2056,2423.4,2423.2,4.12673584]
[1751078103984,0.2056,2423.4,2423.3,6.645]
[1751078105019,1.0315,2423.4,2423.3,6.645]
[1751078107719,0.8259,2423.4,2423.3,6.645]
[1751078110625,1.40005462,2423.4,2423.3,6.645]
[1751078110829,0.8315,2423.3,2423.1,1.693]
[1751078111116,0.8315,2423.3,2423.2,6.643]
[1751078111324,0.8315,2423.3,2423.2,10.76977451]
[1751078111506,0.8315,2423.3,2423.2,11.36977451]
[1751078112943,0.8315,2423.3,2423.2,7.243]
[1751078119258,0.8315,2423.3,2423.2,0.6]
[1751078119434,1.34785363,2423.3,2423.2,7.243]
[1751078119761,1.34785363,2423.3,2423.2,6.643]
[1751078123577,0.8315,2423.3,2423.2,6.643]
[1751078131161,0.8315,2423.3,2423.2,7.243]
[1751078133581,0.2056,2423.4,2423.2,7.243]
[1751078133762,0.2056,2423.4,2423.3,4.12660421]
[1751078134277,0.2056,2423.4,2423.2,11.36968732]
[1751078134484,0.2056,2423.4,2423.3,4.12660421]
[1751078135591,0.2056,2423.4,2423.2,11.36969182]
[1751078138982,0.2056,2423.4,2423.3,4.12660421]
[1751078139789,0.7593,2423.5,2423.3,4.33220421]
[1751078139985,0.2056,2423.7,2423.4,10.76943393]
[1751078139986,1.0347,2423.7,2423.4,10.76943393]
[1751078140758,1.0347,2423.7,2423.5,4.12624578]
[1751078140958,1.0347,2423.7,2423.6,6.643]
[1751078148983,5.16062317,2423.7,2423.6,6.643]
[1751078149171,6.33129744,2423.7,2423.6,6.643]
[1751078150517,0.8193,2423.6,2422.9,10.0]
[1751078150704,0.8193,2423.5,2423.1,0.2056]
[1751078151002,1.0249,2423.5,2423.2,6.642]
[1751078151989,1.0249,2423.5,2423.2,10.76873674]
[1751078154013,1.0249,2423.5,2423.2,6.642]
[1751078154417,1.0249,2423.5,2423.1,4.33246651]
[1751078154714,1.0249,2423.5,2423.3,6.642]
[1751078154916,2.60720576,2423.5,2423.3,7.242]
[1751078157709,2.60720576,2423.5,2423.3,0.6]
[1751078157914,2.60720576,2423.5,2423.4,6.642]
[1751078160319,13.27961455,2423.5,2423.3,0.6]
[1751078160515,0.7906,2423.1,2423.0,6.642]
[1751078160819,0.9962,2423.1,2423.0,6.642]
[1751078161813,0.9962,2423.1,2422.8,4.12735978]
[1751078162218,0.9962,2423.1,2422.9,0.6]
[1751078162387,0.9962,2423.1,2423.0,6.642]
[1751078163188,5.12314482,2423.1,2423.0,6.642]
[1751078163720,0.9962,2423.1,2423.0,6.642]
[1751078164421,5.12314482,2423.1,2423.0,6.642]
[1751078165923,4.12777115,2422.7,2422.5,0.2056]
[1751078166133,0.7844,2422.5,2422.3,0.002]
[1751078169588,0.7844,2422.7,2422.3,4.13028539]
[1751078169794,0.7844,2422.9,2422.5,4.12791036]
[1751078170016,1.85172882,2422.9,2422.5,10.78491036]
[1751078170214,1.85172882,2422.9,2422.5,6.657]
[1751078170541,5.97902165,2422.9,2422.5,6.657]
[1751078170720,1.85172882,2422.9,2422.5,6.657]
[1751078171022,1.85172882,2422.9,2422.5,10.78492252]
[1751078172026,1.85172882,2422.9,2422.5,6.657]
[1751078172206,0.7844,2422.9,2422.5,10.78492921]
[1751078172826,4.91174439,2422.9,2422.3,0.002]
[1751078173006,0.7844,2422.6,2422.3,0.002]
[1751078173421,0.7844,2422.6,2422.3,4.13030625]
[1751078174608,0.7844,2422.6,2422.3,0.002]
[1751078176033,0.99,2422.6,2422.3,0.002]
[1751078176327,5.629645,2422.6,2422.3,0.002]
[1751078177097,0.7927,2422.4,2422.3,0.002]
[1751078179934,1.693,2422.9,2422.6,4.12769039]
[1751078180114,0.2056,2422.8,2422.6,4.12769039]
[1751078180820,0.7927,2423.0,2422.6,6.666]
[1751078181025,0.2056,2423.1,2422.7,4.33322455]
[1751078181222,0.2056,2423.1,2422.8,4.12745583]
[1751078182530,0.7808,2423.0,2422.8,6.669]
[1751078182704,0.2056,2423.0,2422.8,6.669]
[1751078185347,0.7808,2422.9,2422.8,6.669]
[1751078185509,1.29214084,2422.9,2422.8,6.669]
[1751078186442,1.29214084,2422.9,2422.5,10.79785501]
[1751078186648,0.7808,2422.9,2422.5,10.79785501]
[1751078190441,0.7808,2422.9,2422.7,0.6]
[1751078190936,4.90810961,2422.9,2422.7,0.6]
[1751078191107,4.90810961,2422.9,2422.5,6.67]
[1751078191732,4.90810961,2422.9,2422.4,4.33444116]
[1751078191918,1.57869478,2422.8,2422.5,6.669]
[1751078195643,1.57869478,2422.8,2422.5,10.79693976]
[1751078195843,0.7808,2422.9,2422.5,10.79693976]
[1751078196049,0.7808,2422.9,2422.5,6.669]
[1751078196560,4.90808647,2422.9,2422.5,6.669]
[1751078197061,0.2056,2422.6,2422.5,6.669]
[1751078197359,0.9877,2422.6,2422.5,6.669]
[1751078197545,5.62712482,2422.6,2422.4,6.666]
[1751078197860,5.62712482,2422.6,2422.4,7.266]
[1751078198155,1.49923488,2422.6,2422.4,7.266]
[1751078201433,0.9877,2422.6,2422.4,7.266]
[1751078202325,0.2056,2422.6,2422.5,4.12796697]
[1751078202526,2.6806,2422.9,2422.5,4.12779919]
[1751078202863,2.6806,2422.9,2422.6,4.12779078]
[1751078204659,0.2056,2422.9,2422.7,4.12753425]
[1751078204846,1.9126,2423.2,2422.9,4.12720238]
[1751078205210,2.18066,2423.2,2422.9,4.12720238]
[1751078208784,0.47366,2423.2,2422.9,4.12720238]
[1751078210261,0.2056,2423.2,2422.9,4.12720238]
[1751078211985,0.2056,2423.2,2422.8,4.12736829]
[1751078212778,0.2056,2423.2,2422.9,4.12727487]
[1751078215278,0.2056,2423.2,2422.8,4.12737738]
[1751078216994,4.33239722,2423.2,2422.7,11.77387003]
[1751078217155,1.74801479,2423.1,2422.7,10.99717003]
[1751078217360,1.74801479,2423.1,2422.7,6.8696]
[1751078217583,1.74801479,2423.1,2422.7,10.99720136]
[1751078219277,1.74801479,2423.1,2422.7,6.8696]
[1751078219970,1.74801479,2423.1,2422.7,6.661]
[1751078219971,0.8187,2423.0,2422.7,6.661]
[1751078220176,0.87496823,2422.9,2422.7,6.661]
[1751078220357,0.2056,2422.9,2422.7,6.661]
[1751078224391,0.2056,2422.9,2422.6,6.661]
[1751078224779,4.33298085,2422.9,2422.6,6.661]
[1751078225792,4.94624385,2422.8,2422.5,6.662]
[1751078226666,0.2056,2422.9,2422.7,4.12761873]
[1751078226871,0.2056,2422.9,2422.6,0.7678]
[1751078227169,0.2056,2422.9,2422.7,0.6]
[1751078227754,4.33299825,2422.9,2422.6,0.7678]
[1751078228108,0.43329983,2422.8,2422.5,10.78992949]
[1751078228256,0.43329983,2422.8,2422.6,6.674]
[1751078230496,0.43329983,2422.8,2422.3,0.002]
[1751078230497,4.12788216,2422.6,2422.3,0.002]
[1751078230698,0.2056,2422.5,2422.4,6.678]
[1751078231065,0.2056,2422.5,2422.3,0.002]
[1751078231267,0.2056,2422.5,2422.3,6.681]
[1751078232800,0.2056,2422.5,2422.3,0.002]
[1751078232801,4.88683738,2422.4,2422.3,0.002]
[1751078233002,6.05069307,2422.4,2422.3,0.002]
[1751078233997,7.75369307,2422.4,2422.3,0.002]
[1751078234199,14.29981257,2422.4,2422.3,0.002]
[1751078236270,21.53481257,2422.4,2422.3,0.002]
[1751078245420,21.54657974,2422.4,2422.3,0.002]
[1751078245718,13.15857974,2422.4,2422.3,0.002]
[1751078246038,21.54457974,2422.4,2422.3,0.002]
[1751078246180,13.15857974,2422.4,2422.3,0.002]
[1751078246380,21.54357974,2422.4,2422.3,0.002]
[1751078248114,13.15857974,2422.4,2422.3,0.002]
[1751078248308,21.54257974,2422.4,2422.3,0.002]
[1751078260932,14.44846024,2422.4,2422.3,0.002]
[1751078269634,8.39276717,2422.4,2422.3,0.002]
[1751078269809,15.75668667,2422.4,2422.3,0.002]
[1751078270006,19.88482405,2422.4,2422.3,0.002]
[1751078272923,4.95770455,2422.4,2422.3,0.002]
[1751078273237,12.52390455,2422.4,2422.3,0.002]
[1751078273438,14.92633033,2422.4,2422.3,0.002]
[1751078281055,22.27754983,2422.4,2422.3,0.002]
[1751078291556,22.26554983,2422.4,2422.3,0.002]
[1751078293573,22.26454983,2422.4,2422.3,0.002]
[1751078295164,13.89354983,2422.4,2422.3,0.002]
[1751078295470,22.26354983,2422.4,2422.3,0.002]
[1751078299668,8.24933033,2422.4,2422.3,0.002]
[1751078299869,14.91033033,2422.4,2422.3,0.002]
[1751078301975,5.84690455,2422.4,2422.3,0.002]
[1751078302178,12.50690455,2422.4,2422.3,0.002]
[1751078309869,4.13990455,2422.4,2422.3,0.002]
[1751078310069,12.50390455,2422.4,2422.3,0.002]
[1751078310269,4.13990455,2422.4,2422.3,0.002]
[1751078310484,12.50390455,2422.4,2422.3,0.002]
[1751078311208,13.06638951,2422.4,2422.3,0.002]
[1751078312594,17.64837686,2422.4,2422.3,0.002]
[1751078316610,19.61317248,2422.4,2422.3,0.002]
[1751078338728,17.64896928,2422.4,2422.3,0.002]
[1751078346032,18.99496928,2422.4,2422.3,0.002]
[1751078347948,28.99496928,2422.4,2422.3,0.002]
[1751078359992,29.19600857,2422.4,2422.3,0.002]
[1751078375273,5.6830078,2422.3,2422.2,0.002]
[1751078375475,9.44910858,2422.3,2422.2,0.002]
[1751078376301,9.90466882,2422.3,2422.2,0.002]
[1751078379207,24.48724859,2422.3,2422.2,0.002]
[1751078379380,64.39824859,2422.3,2422.2,0.002]
[1751078380486,44.67847824,2422.2,2422.1,0.002]
[1751078380839,60.71908225,2422.2,2422.1,0.002]
[1751078382020,9.2619104,2421.7,2421.6,0.002]
[1751078382184,17.6149104,2421.7,2421.6,0.002]
[1751078393923,17.6139104,2421.7,2421.6,0.002]
[1751078396523,9.2619104,2421.7,2421.6,0.002]
[1751078396847,18.9834219,2421.7,2421.6,0.002]
[1751078397006,18.9834219,2421.7,2421.4,0.811]
[1751078397342,4.33590115,2421.6,2421.4,0.667]
[1751078397541,4.12950115,2421.6,2421.4,0.667]
[1751078400917,4.12967169,2421.5,2421.4,0.667]
[1751078404454,4.12955449,2421.6,2421.4,0.667]
[1751078405466,1.698,2421.5,2421.4,0.667]
[1751078407252,5.82767169,2421.5,2421.4,0.667]
[1751078409748,7.62574305,2421.5,2421.4,0.667]
[1751078409955,0.2064,2421.4,2421.2,0.8171]
[1751078410125,4.33624224,2421.4,2421.2,0.8171]
[1751078412858,0.2064,2421.4,2421.2,0.8171]
[1751078422066,4.33624224,2421.4,2421.2,0.8171]
[1751078424785,5.32517581,2421.4,2421.2,0.8171]
[1751078429088,1.19533357,2421.4,2421.2,0.8171]
[1751078429792,5.32517581,2421.4,2421.2,0.8171]
[1751078438576,5.32517581,2421.4,2421.2,0.002]
[1751078443993,1.19533357,2421.4,2421.2,0.002]
[1751078444204,0.2064,2421.4,2421.2,0.002]
[1751078444604,4.33624224,2421.4,2421.2,0.002]
[1751078449222,0.2064,2421.4,2421.2,0.002]
[1751078452243,4.33624224,2421.4,2421.2,0.002]
[1751078456729,0.2064,2421.4,2421.2,0.002]
[1751078457127,4.33624224,2421.4,2421.2,0.002]
[1751078457498,6.03224224,2421.4,2421.2,0.002]
[1751078457698,1.9024,2421.4,2421.2,0.7841]
[1751078457925,0.2064,2421.4,2421.2,0.7841]
[1751078458240,0.2064,2421.4,2421.3,0.7841]
[1751078458241,1.9024,2421.4,2421.3,0.7841]
[1751078459528,0.2064,2421.4,2421.3,0.7841]
[1751078462631,1.696,2421.8,2421.5,4.12957794]
[1751078462942,1.9024,2421.8,2421.6,0.8173]
[1751078463296,6.03169046,2421.8,2421.6,0.8173]
[1751078463699,1.9024,2421.8,2421.6,0.8173]
[1751078468937,0.2064,2421.8,2421.6,4.94679523]
[1751078469512,0.2064,2421.8,2421.7,0.8159]
[1751078470430,1.9014,2422.0,2421.7,0.8159]
[1751078477254,2.4581,2422.7,2422.3,4.1283078]
[1751078477552,0.2064,2422.5,2422.3,4.1283078]
[1751078477752,1.696,2422.8,2422.3,4.9226078]
[1751078477908,1.696,2422.8,2422.3,5.1290078]
[1751078478341,0.001,2422.8,2422.3,5.1290078]
[1751078487863,0.001,2422.8,2422.3,21.67094792]
[1751078488033,0.001,2422.8,2422.3,53.91494792]
[1751078488669,0.001,2422.8,2422.3,58.66494792]
[1751078489155,0.001,2422.8,2422.3,28.66494792]
[1751078489360,0.001,2422.8,2422.3,58.66494792]
[1751078489561,0.001,2422.8,2422.3,40.04786425]
[1751078489783,0.001,2422.8,2422.3,32.96738992]
[1751078490142,0.001,2422.8,2422.3,36.55516792]
[1751078491267,0.001,2422.8,2422.3,50.18696592]
[1751078491846,0.001,2422.8,2422.3,50.39037468]
[1751078492275,0.001,2422.8,2422.3,52.75837468]
[1751078493489,0.001,2422.8,2422.3,58.86835668]
[1751078496373,0.001,2422.8,2422.3,46.95149468]
[1751078497574,0.001,2422.8,2422.3,49.48902368]
[1751078498089,0.001,2422.8,2422.3,49.08302368]
[1751078498482,0.001,2422.8,2422.3,31.40442792]
[1751078498786,0.001,2422.8,2422.3,31.14157792]
[1751078498998,0.001,2422.8,2422.3,29.44757792]
[1751078499299,0.001,2422.8,2422.3,30.55694792]
[1751078499661,0.001,2422.8,2422.3,16.8220078]
[1751078499861,0.001,2422.8,2422.3,23.4650078]
[1751078500296,0.001,2422.8,2422.3,15.1290078]
[1751078500463,0.817,2422.6,2422.3,4.3347078]
[1751078500790,0.817,2422.6,2422.3,10.9777078]
[1751078501015,0.817,2422.6,2422.3,20.9777078]
[1751078511100,0.817,2422.6,2422.2,4.12837627]
[1751078511300,1.0226,2422.6,2422.3,6.643]
[1751078512184,0.2066,2422.6,2422.3,6.643]
[1751078512382,0.78376717,2422.4,2422.3,6.643]
[1751078514611,0.78376717,2422.4,2422.3,4.1283078]
[1751078514906,0.78376717,2422.4,2422.3,10.7713078]